fUSD/lending_fUSD_20250502
["ID","MTS","AMOUNT","RATE_DAILY","PERIOD"]
[359635565,1746202234716,-450.0,0.00019762,2]
[359635566,1746202234726,-450.0,0.00019762,2]
[359635567,1746202234735,-450.0,0.00019762,2]
[359635568,1746202234744,-534.8,0.00019762,2]
[359635569,1746202234754,-450.0,0.00019762,2]
[359635570,1746202234763,-450.0,0.00019762,2]
[359635571,1746202234773,-689.45,0.00019762,2]
[359635572,1746202234783,-603.28,0.00019762,2]
[359635573,1746202234793,-654.13,0.00019762,2]
[359635574,1746202234802,-611.55,0.00019762,2]
[359635575,1746202234812,-477.71,0.00019762,2]
[359635576,1746202234821,-522.59,0.00019762,2]
[359635577,1746202234831,-450.0,0.00019762,2]
[359635578,1746202234840,-450.0,0.00019762,2]
[359635579,1746202234850,-450.0,0.00019762,2]
[359635580,1746202234859,-450.0,0.00019762,2]
[359635581,1746202234869,-469.4,0.00019762,2]
[359635582,1746202234882,-450.0,0.00019762,2]
[359635583,1746202234893,-324.10511195,0.00019762,2]
[359635584,1746202234903,-450.0,0.00019762,2]
[359635585,1746202234914,-616.23,0.00019762,2]
[359635586,1746202234924,-810.35,0.00019762,2]
[359635587,1746202234934,-805.05,0.00019762,2]
[359635588,1746202234944,-450.0,0.00019762,2]
[359635589,1746202234954,-831.73,0.00019762,2]
[359635590,1746202234964,-450.0,0.00019762,2]
[359635591,1746202234973,-687.88,0.00019762,2]
[359635592,1746202234983,-450.0,0.00019762,2]
[359635593,1746202234992,-450.0,0.00019762,2]
[359635594,1746202235002,-450.0,0.00019762,2]
[359635595,1746202235011,-450.0,0.00019762,2]
[359635596,1746202235020,-568.0,0.00019762,2]
[359635597,1746202235030,-450.0,0.00019762,2]
[359635598,1746202235039,-450.0,0.00019762,2]
[359635599,1746202235049,-450.0,0.00019762,2]
[359635600,1746202235058,-450.0,0.00019762,2]
[359635601,1746202235068,-450.0,0.00019762,2]
[359635602,1746202235077,-1205.7,0.00019762,2]
[359635603,1746202235087,-565.78,0.00019762,2]
[359635604,1746202235097,-450.0,0.00019762,2]
[359635605,1746202235107,-450.0,0.00019762,2]
[359635606,1746202235116,-450.0,0.00019762,2]
[359635607,1746202235126,-450.0,0.00019762,2]
[359635608,1746202235135,-450.0,0.00019762,2]
[359635609,1746202235145,-450.0,0.00019762,2]
[359635610,1746202235154,-471.1,0.00019762,2]
[359635611,1746202235165,-450.0,0.00019762,2]
[359635612,1746202235175,-181.40078466,0.00019762,2]
[359635613,1746202235185,-450.0,0.00019762,2]
[359635614,1746202235195,-637.91,0.00019762,2]
[359635615,1746202235204,-450.0,0.00019762,2]
[359635616,1746202235214,-450.0,0.00019762,2]
[359635617,1746202235223,-450.0,0.00019762,2]
[359635618,1746202235232,-450.0,0.00019762,2]
[359635619,1746202235242,-7695.47,0.00019762,2]
[359635620,1746202235251,-1628.25,0.00019762,2]
[359635621,1746202235261,-618.62,0.00019762,2]
[359635622,1746202235270,-758.14,0.00019762,2]
[359635623,1746202235280,-450.0,0.00019762,2]
[359635624,1746202235290,-450.0,0.00019762,2]
[359635625,1746202235300,-593.69,0.00019762,2]
[359635626,1746202235309,-450.0,0.00019762,2]
[359635627,1746202235319,-450.0,0.00019762,2]
[359635628,1746202235328,-450.0,0.00019762,2]
[359635629,1746202235337,-1465.16,0.00019762,2]
[359635630,1746202235346,-532.36,0.00019762,2]
[359635631,1746202235355,-570.44,0.00019762,2]
[359635632,1746202235365,-450.0,0.00019762,2]
[359635633,1746202235374,-519.8,0.00019762,2]
[359635634,1746202235383,-450.0,0.00019762,2]
[359635635,1746202235393,-7225.55,0.00019762,2]
[359635636,1746202235402,-450.0,0.00019762,2]
[359635637,1746202235411,-450.0,0.00019762,2]
[359635638,1746202235420,-617.54,0.00019762,2]
[359635639,1746202235429,-450.0,0.00019762,2]
[359635640,1746202235438,-450.0,0.00019762,2]
[359635641,1746202235449,-450.0,0.00019762,2]
[359635642,1746202235458,-65342.57,0.00019762,2]
[359635643,1746202235467,-450.0,0.00019762,2]
[359635644,1746202235476,-521.55,0.00019762,2]
[359635645,1746202235485,-450.0,0.00019762,2]
[359635646,1746202235494,-521.51,0.00019762,2]
[359635647,1746202235504,-470.38,0.00019762,2]
[359635648,1746202235513,-677.11,0.00019762,2]
[359635649,1746202235523,-450.0,0.00019762,2]
[359635650,1746202235532,-188.79780391,0.00019762,2]
[359635651,1746202235541,-450.0,0.00019762,2]
[359635652,1746202235551,-450.0,0.00019762,2]
[359635653,1746202235560,-450.0,0.00019762,2]
[359635654,1746202235569,-450.0,0.00019763,2]
[359635655,1746202235578,-450.0,0.00019763,2]
[359635656,1746202235588,-553.8,0.00019763,2]
[359635657,1746202235597,-450.0,0.00019763,2]
[359635658,1746202235607,-450.0,0.00019763,2]
[359635659,1746202235616,-238.82591097,0.00019763,2]
[359635660,1746202235625,-450.0,0.00019763,2]
[359635661,1746202235634,-662.22,0.00019763,2]
[359635662,1746202235643,-450.0,0.00019763,2]
[359635663,1746202235653,-318.76601085,0.00019763,2]
[359635664,1746202235663,-450.0,0.00019763,2]
[359635665,1746202235672,-450.0,0.00019763,2]
[359635666,1746202235682,-745.97,0.00019763,2]
[359635667,1746202235692,-450.0,0.00019763,2]
[359635668,1746202235701,-450.0,0.00019763,2]
[359635669,1746202235711,-450.0,0.00019763,2]
[359635670,1746202235720,-450.0,0.00019763,2]
[359635671,1746202235730,-470.78835017,0.00019763,2]
[359635672,1746202235740,-772.01,0.00019763,2]
[359635673,1746202235750,-450.0,0.00019763,2]
[359635674,1746202235760,-450.0,0.00019763,2]
[359635675,1746202235770,-450.0,0.00019763,2]
[359635676,1746202235779,-450.0,0.00019763,2]
[359635677,1746202235789,-450.0,0.00019763,2]
[359635678,1746202235799,-450.0,0.00019763,2]
[359635679,1746202235808,-450.0,0.00019763,2]
[359635680,1746202235817,-450.0,0.00019763,2]
[359635681,1746202235827,-450.0,0.00019763,2]
[359635682,1746202235836,-450.0,0.00019763,2]
[359635683,1746202235846,-484.37,0.00019763,2]
[359635684,1746202235856,-450.0,0.00019763,2]
[359635685,1746202235865,-450.0,0.00019763,2]
[359635686,1746202235878,-993.16,0.00019763,2]
[359635687,1746202235888,-450.0,0.00019763,2]
[359635688,1746202235898,-450.0,0.00019763,2]
[359635689,1746202235908,-450.0,0.00019763,2]
[359635690,1746202235919,-450.0,0.00019763,2]
[359635691,1746202235929,-450.0,0.00019763,2]
[359635692,1746202235940,-450.0,0.00019763,2]
[359635693,1746202235950,-450.0,0.00019763,2]
[359635694,1746202235960,-450.0,0.00019763,2]
[359635695,1746202235970,-450.0,0.00019763,2]
[359635696,1746202235980,-450.0,0.00019763,2]
[359635697,1746202235989,-450.0,0.00019763,2]
[359635698,1746202235999,-450.0,0.00019763,2]
[359635699,1746202236009,-450.00085812,0.00019763,2]
[359635700,1746202236018,-450.0,0.00019763,2]
[359635701,1746202236027,-450.0,0.00019763,2]
[359635702,1746202236036,-450.0,0.00019763,2]
[359635703,1746202236046,-710.85,0.00019763,2]
[359635704,1746202236056,-1009.14,0.00019763,2]
[359635705,1746202236066,-450.0,0.00019763,2]
[359635706,1746202236075,-450.0,0.00019763,2]
[359635707,1746202236085,-450.0,0.00019763,2]
[359635708,1746202236095,-450.0,0.00019763,2]
[359635709,1746202236104,-450.0,0.00019763,2]
[359635710,1746202236114,-450.0,0.00019763,2]
[359635711,1746202236123,-554.04,0.00019763,2]
[359635712,1746202236132,-406.25701721,0.00019763,2]
[359635713,1746202236141,-1297.85,0.00019763,2]
[359635714,1746202236151,-450.0,0.00019763,2]
[359635715,1746202236160,-450.0,0.00019763,2]
[359635716,1746202236169,-300.0,0.00019763,2]
[359635717,1746202236178,-450.0,0.00019763,2]
[359635718,1746202236188,-598.44,0.00019763,2]
[359635719,1746202236197,-450.0,0.00019763,2]
[359635720,1746202236207,-450.0,0.00019763,2]
[359635721,1746202236217,-450.0,0.00019763,2]
[359635722,1746202236226,-450.0,0.00019763,2]
[359635723,1746202236236,-450.0,0.00019763,2]
[359635724,1746202236245,-450.0,0.00019763,2]
[359635725,1746202236254,-450.0,0.00019763,2]
[359635726,1746202236263,-450.0,0.00019763,2]
[359635727,1746202236273,-450.0,0.00019763,2]
[359635728,1746202236282,-450.0,0.00019763,2]
[359635729,1746202236292,-450.0,0.00019763,2]
[359635730,1746202236301,-340.20410739,0.00019763,2]
[359635731,1746202236310,-605.53,0.00019763,2]
[359635732,1746202236320,-1924.5,0.00019763,2]
[359635733,1746202236329,-450.0,0.00019763,2]
[359635734,1746202236339,-450.0,0.00019763,2]
[359635735,1746202236348,-590.67,0.00019763,2]
[359635736,1746202236358,-450.0,0.00019763,2]
[359635737,1746202236368,-450.0,0.00019763,2]
[359635738,1746202236378,-450.0,0.00019763,2]
[359635739,1746202236387,-450.0,0.00019763,2]
[359635740,1746202236397,-450.0,0.00019763,2]
[359635741,1746202236406,-450.0,0.00019763,2]
[359635742,1746202236417,-450.0,0.00019763,2]
[359635743,1746202236426,-450.0,0.00019763,2]
[359635744,1746202236436,-450.0,0.00019763,2]
[359635745,1746202236447,-450.0,0.00019763,2]
[359635746,1746202236457,-450.0,0.00019763,2]
[359635747,1746202236467,-2866.73,0.00019763,2]
[359635748,1746202236476,-450.0,0.00019763,2]
[359635749,1746202236485,-450.0,0.00019763,2]
[359635750,1746202236495,-466.21,0.00019763,2]
[359635751,1746202236504,-450.0,0.00019763,2]
[359635752,1746202236514,-450.0,0.00019763,2]
[359635753,1746202236524,-663.79,0.00019763,2]
[359635754,1746202236533,-450.0,0.00019763,2]
[359635755,1746202236542,-534.49,0.00019763,2]
[359635756,1746202236551,-450.0,0.00019763,2]
[359635757,1746202236560,-543.2,0.00019763,2]
[359635758,1746202236569,-1241.09,0.00019763,2]
[359635759,1746202236579,-450.0,0.00019763,2]
[359635760,1746202236588,-450.0,0.00019763,2]
[359635761,1746202236597,-450.0,0.00019763,2]
[359635762,1746202236607,-450.0,0.00019763,2]
[359635763,1746202236618,-816.79,0.00019763,2]
[359635764,1746202236628,-450.0,0.00019763,2]
[359635765,1746202236637,-450.0,0.00019763,2]
[359635766,1746202236647,-450.0,0.00019763,2]
[359635767,1746202236656,-450.0,0.00019763,2]
[359635768,1746202236667,-1343.22,0.00019763,2]
[359635769,1746202236676,-911.61,0.00019763,2]
[359635770,1746202236685,-450.0,0.00019763,2]
[359635771,1746202236695,-450.0,0.00019763,2]
[359635772,1746202236705,-450.0,0.00019763,2]
[359635773,1746202236714,-450.0,0.00019763,2]
[359635774,1746202236724,-491.94,0.00019763,2]
[359635775,1746202236733,-533.95,0.00019763,2]
[359635776,1746202236743,-626.85,0.00019763,2]
[359635777,1746202236752,-450.0,0.00019763,2]
[359635778,1746202236763,-1147.13,0.00019763,2]
[359635779,1746202236772,-450.0,0.00019763,2]
[359635780,1746202236781,-643.86,0.00019763,2]
[359635781,1746202236791,-435.8981723,0.00019763,2]
[359635782,1746202236801,-450.0,0.00019763,2]
[359635783,1746202236811,-450.0,0.00019763,2]
[359635784,1746202236820,-450.0,0.00019763,2]
[359635785,1746202236830,-450.0,0.00019763,2]
[359635786,1746202236839,-450.0,0.00019763,2]
[359635787,1746202236849,-450.0,0.00019763,2]
[359635788,1746202236858,-450.0,0.00019763,2]
[359635789,1746202236869,-450.0,0.00019763,2]
[359635790,1746202236878,-450.0,0.00019763,2]
[359635791,1746202236889,-357.75871777,0.00019763,2]
[359635792,1746202236899,-450.0,0.00019763,2]
[359635793,1746202236909,-450.0,0.00019763,2]
[359635794,1746202236919,-489.84,0.00019763,2]
[359635795,1746202236928,-450.0,0.00019763,2]
[359635796,1746202236938,-536.2,0.00019763,2]
[359635797,1746202236948,-248.25267956,0.00019763,2]
[359635798,1746202236958,-1337.08,0.00019763,2]
[359635799,1746202236969,-551.84,0.00019763,2]
[359635800,1746202236979,-450.0,0.00019763,2]
[359635801,1746202236989,-450.0,0.00019763,2]
[359635802,1746202236999,-527.56,0.00019763,2]
[359635803,1746202237008,-450.0,0.00019763,2]
[359635804,1746202237018,-450.0,0.00019763,2]
[359635805,1746202237027,-695.24,0.00019763,2]
[359635806,1746202237037,-738.68,0.00019763,2]
[359635807,1746202237047,-1749.59,0.00019763,2]
[359635808,1746202237056,-450.0,0.00019763,2]
[359635809,1746202237066,-450.0,0.00019763,2]
[359635810,1746202237076,-862.57,0.00019763,2]
[359635811,1746202237085,-450.0,0.00019763,2]
[359635812,1746202237095,-450.0,0.00019763,2]
[359635813,1746202237105,-450.0,0.00019763,2]
[359635814,1746202237115,-450.0,0.00019763,2]
[359635815,1746202237124,-611.0,0.00019763,2]
[359635816,1746202237134,-450.0,0.00019763,2]
[359635817,1746202237143,-657.49,0.00019763,2]
[359635818,1746202237152,-1130.27,0.00019763,2]
[359635819,1746202237161,-450.0,0.00019763,2]
[359635820,1746202237171,-450.0,0.00019763,2]
[359635821,1746202237180,-499.41,0.00019763,2]
[359635822,1746202237189,-682.28,0.00019763,2]
[359635823,1746202237198,-732.7,0.00019763,2]
[359635824,1746202237207,-450.0,0.00019763,2]
[359635825,1746202237216,-657.79,0.00019763,2]
[359635826,1746202237225,-450.0,0.00019763,2]
[359635827,1746202237235,-850.54,0.00019763,2]
[359635828,1746202237245,-644.99,0.00019763,2]
[359635829,1746202237258,-450.0,0.00019763,2]
[359635830,1746202237268,-708.03,0.00019763,2]
[359635831,1746202237277,-2804.5,0.00019763,2]
[359635832,1746202237286,-450.0,0.00019763,2]
[359635833,1746202237296,-2063.07,0.00019763,2]
[359635834,1746202237305,-450.0,0.00019763,2]
[359635835,1746202237314,-638.22,0.00019763,2]
[359635836,1746202237323,-450.0,0.00019763,2]
[359635837,1746202237333,-450.0,0.00019763,2]
[359635838,1746202237342,-4151.9,0.00019763,2]
[359635839,1746202237352,-681.43,0.00019763,2]
[359635840,1746202237361,-663.52,0.00019763,2]
[359635841,1746202237370,-699.87,0.00019763,2]
[359635842,1746202237379,-450.0,0.00019763,2]
[359635843,1746202237388,-566.53,0.00019763,2]
[359635844,1746202237397,-1061.32,0.00019763,2]
[359635845,1746202237406,-450.0,0.00019763,2]
[359635846,1746202237416,-2219.64,0.00019763,2]
[359635847,1746202237426,-98.91418668,0.00019763,2]
[359635851,1746202238344,-250.0,0.00019763,2]
[359635852,1746202238355,-474.63581332,0.00019763,2]
[359635853,1746202238364,-450.0,0.00019763,2]
[359635854,1746202238373,-450.0,0.00019763,2]
[359635855,1746202238382,-829.39,0.00019763,2]
[359635856,1746202238391,-450.0,0.00019763,2]
[359635857,1746202238401,-680.9741867,0.00019763,2]
[359635858,1746202238465,-323.33265533,0.00019763,2]
[359635859,1746202238477,-32.55315797,0.00019763,2]
[359635860,1746202238692,-1167.92,0.00019763,2]
[359635861,1746202238703,-450.0,0.00019763,2]
[359635862,1746202238713,-2009.25,0.00019763,2]
[359635864,1746202238723,-450.0,0.00019763,2]
[359635866,1746202238732,-820.34,0.00019763,2]
[359635870,1746202238742,-5303.66,0.00019763,2]
[359635873,1746202238752,-726.42,0.00019763,2]
[359635876,1746202238761,-809.86,0.00019763,2]
[359635879,1746202238771,-610.17,0.00019763,2]
[359635881,1746202238780,-450.0,0.00019763,2]
[359635883,1746202238789,-5353.29,0.00019763,2]
[359635885,1746202238798,-450.0,0.00019763,2]
[359635888,1746202238808,-723.44,0.00019763,2]
[359635891,1746202238818,-450.0,0.00019763,2]
[359635894,1746202238827,-1302.61,0.00019763,2]
[359635896,1746202238837,-245.81325155,0.00019763,2]
[359635897,1746202238846,-498.75,0.00019763,2]
[359635898,1746202238856,-5522.95,0.00019763,2]
[359635899,1746202238865,-559.0,0.00019763,2]
[359635900,1746202238876,-512.05443125,0.00019763,2]
[359635901,1746202238886,-450.0,0.00019763,2]
[359635902,1746202238898,-450.0,0.00019763,2]
[359635903,1746202238907,-17750.53602108,0.00019763,2]
[359635908,1746202240552,-702.17,0.00019762,2]
[359635909,1746202240561,-450.0,0.00019762,2]
[359635910,1746202240570,-45.74337349,0.00019763,2]
[359635911,1746202240581,-89140.28060543,0.00019763,2]
[359635912,1746202240590,-587.69,0.00019763,2]
[359635913,1746202240599,-450.0,0.00019763,2]
[359635914,1746202240608,-1600.95,0.00019763,2]
[359635915,1746202240617,-974.3,0.00019763,2]
[359635916,1746202240627,-5787.29,0.00019763,2]
[359635917,1746202240635,-650.99,0.00019763,2]
[359635918,1746202240644,-450.0,0.00019763,2]
[359635919,1746202240653,-450.0,0.00019763,2]
[359635920,1746202240662,-30048.74,0.00019763,2]
[359635921,1746202240673,-450.0,0.00019763,2]
[359635922,1746202240681,-2009.58,0.00019763,2]
[359635923,1746202240690,-527.26,0.00019763,2]
[359635924,1746202240698,-450.0,0.00019763,2]
[359635925,1746202240707,-17758.64,0.00019763,2]
[359635926,1746202240715,-450.0,0.00019763,2]
[359635927,1746202240725,-450.0,0.00019763,2]
[359635928,1746202240733,-450.0,0.00019763,2]
[359635929,1746202240741,-539.73,0.00019763,2]
[359635930,1746202240750,-450.0,0.00019764,2]
[359635931,1746202240759,-450.0,0.00019764,2]
[359635932,1746202240766,-450.0,0.00019764,2]
[359635933,1746202240773,-479.08,0.00019764,2]
[359635934,1746202240780,-2717.77,0.00019764,2]
[359635935,1746202240791,-450.0,0.00019764,2]
[359635936,1746202240801,-1190.61,0.00019764,2]
[359635937,1746202240810,-452.73,0.00019764,2]
[359635938,1746202240820,-2482.1,0.00019764,2]
[359635939,1746202240829,-450.0,0.00019764,2]
[359635940,1746202240838,-450.0,0.00019764,2]
[359635941,1746202240848,-489.04,0.00019764,2]
[359635942,1746202240857,-988.54,0.00019764,2]
[359635943,1746202240867,-827.33,0.00019764,2]
[359635944,1746202240879,-450.0,0.00019764,2]
[359635945,1746202240888,-450.0,0.00019764,2]
[359635946,1746202240898,-450.0,0.00019764,2]
[359635947,1746202240907,-450.0,0.00019764,2]
[359635948,1746202240918,-801.85,0.00019764,2]
[359635949,1746202240927,-467.24,0.00019764,2]
[359635950,1746202240937,-827.19,0.00019764,2]
[359635951,1746202240947,-620.97,0.00019764,2]
[359635952,1746202240957,-1456.84414142,0.00019768,2]
[359635953,1746202240969,-2691.53329368,0.00019768,2]
[359635954,1746202240979,-505.12152298,0.00019773,2]
[359635955,1746202240989,-211.47266868,0.00019773,2]
[359635956,1746202240998,-500.0,0.00019773,2]
[359635957,1746202241008,-500.4284128,0.00019773,2]
[359635958,1746202241017,-500.0,0.00019773,2]
[359635959,1746202241027,-1456.84414142,0.00019794,2]
[359635960,1746202241037,-2691.53329368,0.00019795,2]
[359635961,1746202241046,-1100.3275435,0.00019799,2]
[359635962,1746202241056,-1000.0,0.000198,2]
[359635963,1746202241065,-1456.84414142,0.00019821,2]
[359635964,1746202241075,-2691.53329368,0.00019821,2]
[359635965,1746202241085,-2000.0,0.00019839,2]
[359635966,1746202241095,-500.0,0.0001984,2]
[359635967,1746202241104,-2000.0,0.0001984,2]
[359635968,1746202241113,-200.0,0.0001984,2]
[359635969,1746202241123,-2691.53329368,0.00019847,2]
[359635970,1746202241132,-2691.53329368,0.00019874,2]
[359635971,1746202241142,-60563.12505587,0.0001988,2]
[359635972,1746202241151,-6718.0,0.00019896,2]
[359635973,1746202241160,-878.0,0.00019896,2]
[359635974,1746202241171,-153.0,0.00019896,2]
[359635975,1746202241180,-157.54092544,0.000199,2]
[359635976,1746202241190,-212.05224491,0.000199,2]
[359635977,1746202241199,-673.71454159,0.000199,2]
[359635978,1746202241209,-189.95194323,0.000199,2]
[359635979,1746202241219,-2691.53329368,0.000199,2]
[359635980,1746202241229,-347.31953854,0.000199,2]
[359635981,1746202241238,-1225.61963944,0.000199,2]
[359635982,1746202241248,-10412.40852419,0.000199,2]
[359635983,1746202241257,-253.85973984,0.000199,2]
[359635984,1746202241267,-151.0,0.00019914,2]
[359635985,1746202241277,-151.0,0.00019915,2]
[359635986,1746202241286,-151.0,0.00019916,2]
[359635987,1746202241295,-151.0,0.00019916,2]
[359635988,1746202241304,-151.0,0.00019916,2]
[359635989,1746202241314,-500.0,0.00019918,2]
[359635990,1746202241324,-167.072,0.00019937,2]
[359635991,1746202241334,-2082.024,0.00019937,2]
[359635992,1746202241343,-151.0,0.00019943,2]
[359635993,1746202241353,-207.4,0.00019953,2]
[359635994,1746202241362,-151.0,0.00019954,2]
[359635995,1746202241372,-151.0,0.00019954,2]
[359635996,1746202241382,-668.65185757,0.00019954,2]
[359635997,1746202241391,-797.0,0.00019955,2]
[359635998,1746202241400,-500.0,0.00019973,2]
[359635999,1746202241410,-185.86498536,0.00019973,2]
[359636000,1746202241421,-501.47327578,0.00019973,2]
[359636001,1746202241431,-165.99958587,0.00019973,2]
[359636002,1746202241441,-368.87036061,0.00019973,2]
[359636003,1746202241451,-500.0,0.00019973,2]
[359636004,1746202241461,-500.0,0.00019973,2]
[359636005,1746202241471,-500.0,0.00019973,2]
[359636006,1746202241481,-500.0,0.00019973,2]
[359636007,1746202241490,-500.0,0.00019973,2]
[359636008,1746202241500,-502.19667785,0.00019973,2]
[359636009,1746202241509,-517.08214642,0.00019973,2]
[359636010,1746202241519,-501.90027515,0.00019973,2]
[359636011,1746202241528,-500.0,0.00019973,2]
[359636012,1746202241538,-302.52572163,0.00019973,2]
[359636013,1746202241547,-500.0,0.00019973,2]
[359636014,1746202241557,-464.0564446,0.0001999,2]
[359636015,1746202241568,-464.0564446,0.0001999,2]
[359636016,1746202241577,-464.0564446,0.0001999,2]
[359636017,1746202241587,-500.0,0.00019999,2]
[359636018,1746202241597,-675.05638042,0.00019999,2]
[359636019,1746202241606,-500.0,0.00019999,2]
[359636020,1746202241615,-300.0,0.00019999,2]
[359636021,1746202241625,-227.9320649,0.00019999,2]
[359636022,1746202241634,-450.0,0.00019999,2]
[359636023,1746202241644,-450.0,0.00019999,2]
[359636024,1746202241654,-1000.0,0.00019999,2]
[359636025,1746202241663,-1124.0,0.00019999,2]
[359636026,1746202241674,-346.12920957,0.0002,2]
[359636027,1746202241683,-366649.72268969,0.0002,2]
[359636028,1746202241693,-3683433.87731149,0.0002,2]
[359636029,1746202242102,-2438.41392801,0.0002,2]
[359636030,1746202242190,-24076.81899997,0.0002,2]
[359636046,1746202243322,-450.0,0.00019762,2]
[359636047,1746202243332,-1290.85679182,0.00019847,2]
[359636048,1746202243519,-165.9873496,0.00019847,2]
[359636049,1746202243528,-9079.0004678,0.0002,2]
[359636050,1746202243539,-798.75001,0.0002,2]
[359636051,1746202243549,-393.8979766,0.0002,2]
[359636060,1746202246722,-450.0,0.00019762,2]
[359636061,1746202246732,-450.0,0.00019762,2]
[359636062,1746202246742,-257.19734654,0.00019762,2]
[359636064,1746202246754,-400.40265346,0.00019762,2]
[359636066,1746202246765,-468.08,0.00019762,2]
[359636068,1746202246775,-450.0,0.00019762,2]
[359636069,1746202246785,-450.0,0.00019763,2]
[359636070,1746202246795,-499.41050988,0.0002,2]
[359636071,1746202246823,-98237.8046804,0.0002,2]
[359636072,1746202246835,-222274.913,0.0002,2]
[359636075,1746202289947,3475.63,0.00019048,2]
[359636077,1746202326272,-1132.8202,0.00019663,2]
[359636078,1746202326299,-217.44587564,0.000197,2]
[359636079,1746202328015,1867.1798,0.00019663,2]
[359636080,1746202330621,-855.13848233,0.00019547,2]
[359636081,1746202330646,-2362.30739331,0.00019663,2]
[359636082,1746202561751,2340.17,0.00018875,2]
[359636083,1746202606544,812.88,0.00018875,2]
[359636084,1746202736210,-164.43,0.00019587,2]
[359636085,1746202749669,1000.0,0.00018832,2]
[359636086,1746202764951,-1.58,0.00019587,2]
[359636087,1746202785797,250.0,0.00018841,7]
[359636088,1746202926431,-1200.0,0.00019599,2]
[359636089,1746202926457,-300.0,0.00019599,2]
[359636090,1746202926481,-300.0,0.00019599,2]
[359636091,1746202926507,-7200.0,0.000196,2]
[359636092,1746202938190,384.35626662,0.0003287,60]
[359636093,1746202969609,1572.73,0.00018845,2]
[359636094,1746203090387,274.4,0.00018842,2]
[359636095,1746203118712,156.13,0.00018842,2]
[359636096,1746203126111,762.04491201,0.000108,2]
[359636097,1746203128399,2045.86191663,0.00011,2]
[359636098,1746203136788,1316.42643881,9e-05,2]
[359636099,1746203145236,191.03,0.00019178,2]
[359636100,1746203155725,1254.38741807,6.94e-05,2]
[359636101,1746203166353,250.0,0.00017,2]
[359636102,1746203167435,300.0,0.00019,2]
[359636103,1746203167761,1064.77354034,8e-05,2]
[359636104,1746203171363,1852.42,0.00018831,2]
[359636105,1746203198993,173.56,0.0001883,2]
[359636106,1746203213936,1053.61,0.0001692,2]
[359636107,1746203214158,1053.61,0.00019184,2]
[359636108,1746203240119,3522.12662392,0.0001305,2]
[359636109,1746203272745,4277.52734668,0.00013,2]
[359636110,1746203275792,6892.95421434,0.0001,2]
[359636111,1746203315016,6331.84355202,0.000149,2]
[359636112,1746203320546,490.29985137,0.000154,2]
[359636114,1746203324757,19310.59858988,0.00013368,2]
[359636115,1746203326036,153.08536051,0.000189,2]
[359636116,1746203326346,150.0,0.00018825,2]
[359636117,1746203371386,5854.64,0.00018818,2]
[359636145,1746203432302,-357.0,0.00019599,2]
[359636146,1746203432313,-1200.0,0.00019599,2]
[359636147,1746203432322,-300.0,0.00019599,2]
[359636148,1746203432332,-9753.26009861,0.000196,2]
[359636149,1746203432359,-349.97130778,0.000196,2]